bitfinex-derivatives/quotes_SOLF0:USTF0_20250923
["timestamp","ask_amount","ask_price","bid_price","bid_amount"]
[1758658612660,4.1909,214.65,214.6,7.7]
[1758658612864,4.1909,214.65,214.53,7.73408208]
[1758658612865,65.1867,214.67,214.54,11.61365739]
[1758658613071,65.1867,214.67,214.55,3.91365739]
[1758658613769,4.1914,214.63,214.55,3.91365739]
[1758658614169,4.1914,214.63,214.56,7.66]
[1758658615269,65.1745,214.71,214.56,11.56431572]
[1758658615571,66.3425418,214.7,214.58,7.66]
[1758658615772,65.1844,214.68,214.58,7.66]
[1758658616772,4.1914,214.63,214.58,7.66]
[1758658618372,4.1918,214.61,214.53,11.56431572]
[1758658618574,4.1918,214.61,214.53,7.66]
[1758658620376,4.192,214.6,214.53,7.66]
[1758658621575,44.7,214.66,214.53,7.66]
[1758658621576,4.1915,214.63,214.53,7.66]
[1758658621977,44.7,214.66,214.53,7.66]
[1758658622374,2.63884109,214.68,214.55,4.1928]
[1758658622585,2.63884109,214.68,214.56,7.66]
[1758658623485,2.63884109,214.71,214.57,10.29884109]
[1758658623695,95.28877822,214.73,214.58,7.66]
[1758658623984,1.16498605,214.72,214.58,7.66]
[1758658624185,4.1898,214.71,214.59,4.1921]
[1758658624487,4.1898,214.71,214.6,7.66]
[1758658625385,4.1901,214.7,214.6,7.66]
[1758658626283,4.1902,214.69,214.6,7.66]
[1758658631898,65.184,214.68,214.55,3.90431572]
[1758658632195,65.1927,214.65,214.56,7.67]
[1758658632391,65.1927,214.65,214.52,7.67]
[1758658632392,65.1974,214.64,214.52,7.67]
[1758658632603,65.1994,214.63,214.52,7.67]
[1758658632790,65.202,214.62,214.52,7.67]
[1758658632987,4.1927,214.56,214.52,7.67]
[1758658633388,65.2083,214.6,214.48,11.57431572]
[1758658634397,65.2141,214.58,214.48,7.67]
[1758658635499,65.2233,214.55,214.44,3.90431572]
[1758658635701,65.2292,214.53,214.43,11.57431572]
[1758658635996,65.2292,214.53,214.43,7.67]
[1758658636196,2.63884109,214.54,214.43,7.67]
[1758658636804,65.2296,214.53,214.4,352.34]
[1758658637794,65.2239,214.55,214.41,7.67]
[1758658637995,117.16589379,214.54,214.41,7.67]
[1758658638196,116.0,214.54,214.41,7.67]
[1758658638397,4.1936,214.52,214.41,7.67]
[1758658639697,65.2294,214.53,214.41,7.67]
[1758658640004,116.0,214.54,214.41,7.67]
[1758658641002,4.1936,214.52,214.41,7.67]
[1758658642601,5.8828324,214.5,214.41,7.67]
[1758658642802,1.6889324,214.47,214.36,11.57431572]
[1758658642998,1.6889324,214.47,214.36,7.67]
[1758658643202,1.6889324,214.47,214.37,9.5089324]
[1758658643703,1.6889324,214.47,214.37,125.5489324]
[1758658644005,1.6889324,214.49,214.38,7.82]
[1758658644195,1.6889324,214.49,214.41,7.82]
[1758658649010,4.1934,214.53,214.41,4.1956]
[1758658649211,1.6889324,214.54,214.44,7.82]
[1758658649514,1.6889324,214.52,214.44,7.82]
[1758658650209,5.8823324,214.52,214.44,7.82]
[1758658651504,4.1938,214.51,214.44,7.82]
[1758658652711,1.6889324,214.5,214.44,7.82]
[1758658654911,4.194,214.49,214.44,7.82]
[1758658655111,65.219,214.57,214.41,7.82]
[1758658655321,1.6889324,214.52,214.44,1.6889324]
[1758658655518,1.6889324,214.54,214.45,7.82]
[1758658656220,5.8825324,214.52,214.45,7.82]
[1758658660327,5.8825324,214.52,214.45,12.0148]
[1758658660626,1.6889324,214.52,214.45,7.82]
[1758658661326,4.194,214.5,214.43,7.82]
[1758658661526,66.9218324,214.52,214.43,7.82]
[1758658661828,1.6889324,214.49,214.39,9.5089324]
[1758658662523,4.1945,214.47,214.39,5.8847324]
[1758658662728,4.1945,214.47,214.4,7.82]
[1758658664525,4.1945,214.47,214.4,12.0156]
[1758658664730,4.1945,214.47,214.41,7.82]
[1758658665225,65.2057,214.61,214.46,1.6889324]
[1758658665431,1.6889324,214.57,214.47,7.82]
[1758658665924,4.1931,214.54,214.47,12.0143]
[1758658666625,17.96406135,214.54,214.47,12.0143]
[1758658667027,4.1934,214.53,214.47,7.82]
[1758658667532,1.6889324,214.53,214.47,7.82]
[1758658667721,5.8822324,214.53,214.47,7.82]
[1758658667925,1.6889324,214.53,214.47,7.82]
[1758658668125,1.6889324,214.55,214.47,7.82]
[1758658669033,65.2325,214.52,214.41,1.6889324]
[1758658669433,4.1944,214.48,214.42,7.82]
[1758658670027,13.91706501,214.55,214.43,1.6889324]
[1758658670225,65.2221,214.56,214.45,1.6889324]
[1758658670428,1.6889324,214.54,214.45,1.6889324]
[1758658671427,4.1938,214.51,214.45,1.6889324]
[1758658678635,13.77150929,214.55,214.46,7.75]
[1758658678938,1.16572184,214.54,214.48,7.75]
[1758658679140,1.6889324,214.58,214.48,7.75]
[1758658679340,1.16568607,214.57,214.48,7.75]
[1758658679541,1.6889324,214.55,214.48,7.75]
[1758658679731,1.16568607,214.54,214.48,7.75]
[1758658679935,4.1934,214.53,214.48,7.75]
[1758658680241,1.6889324,214.53,214.46,3.89785804]
[1758658680436,1.6889324,214.51,214.43,11.64785804]
[1758658680632,1.16575203,214.5,214.43,7.75]
[1758658680932,1.16575203,214.5,214.44,4.1949]
[1758658681535,1.16575203,214.5,214.43,13.33679044]
[1758658682134,1.16575203,214.5,214.44,4.1949]
[1758658684146,1.16575203,214.5,214.43,13.33679044]
[1758658684346,1.16590882,214.49,214.43,7.75]
[1758658684547,1.6889324,214.52,214.43,7.75]
[1758658684846,1.16589391,214.51,214.43,7.75]
[1758658685045,4.1944,214.48,214.43,7.75]
[1758658685248,1.6889324,214.52,214.43,7.75]
[1758658685445,1.16589361,214.51,214.43,7.75]
[1758658685648,5.35979361,214.5,214.43,11.9451]
[1758658685846,4.1939,214.5,214.43,11.9451]
[1758658686551,4.1935,214.52,214.45,7.75]
[1758658686851,1.16578367,214.51,214.45,7.75]
[1758658687051,4.1935,214.52,214.45,7.75]
[1758658687647,5.8819324,214.55,214.46,1.6889324]
[1758658687843,4.193,214.55,214.49,7.75]
[1758658688246,18.35915088,214.57,214.49,7.75]
[1758658688749,18.35915088,214.57,214.5,1.6889324]
[1758658689550,14.16655088,214.57,214.51,7.75]
[1758658689752,14.16655088,214.57,214.5,5.8826324]
[1758658689753,120.1922,214.59,214.53,7.75]
[1758658690448,14.10730042,214.59,214.55,7.75]
[1758658690646,143.52844994,214.61,214.56,1.6889324]
[1758658690853,143.52844994,214.61,214.57,7.75]
[1758658691242,143.52844994,214.61,214.56,1.6889324]
[1758658691448,4.192,214.6,214.56,1.6889324]
[1758658691750,139.33674994,214.61,214.5,9.1689324]
[1758658691950,153.3141946,214.61,214.5,9.1689324]
[1758658692753,4.1926,214.57,214.5,9.1689324]
[1758658693152,1.6889324,214.59,214.5,1.6889324]
[1758658693358,115.98,214.58,214.5,1.6889324]
[1758658693864,4.1928,214.56,214.5,1.6889324]
[1758658695457,4.193,214.55,214.5,1.6889324]
[1758658696153,117.6489324,214.59,214.48,3.89785804]
[1758658696154,4.1932,214.54,214.48,3.89785804]
[1758658696458,1.6889324,214.56,214.47,11.37785804]
[1758658696660,1.6889324,214.56,214.47,7.48]
[1758658697051,4.1936,214.52,214.47,7.48]
[1758658697251,1.6889324,214.56,214.46,3.89785804]
[1758658697252,65.2232,214.55,214.46,3.89785804]
[1758658698155,4.194,214.5,214.45,3.89785804]
[1758658698364,117.6489324,214.53,214.45,11.37785804]
[1758658698554,65.2322,214.52,214.44,3.89785804]
[1758658698749,4.1943,214.48,214.42,11.37785804]
[1758658699057,117.6489324,214.53,214.44,7.48]
[1758658699856,4.1939,214.5,214.44,7.48]
[1758658700055,4.1939,214.5,214.44,9.1689324]
[1758658700461,4.1939,214.5,214.44,13.06679044]
[1758658700662,1.6889324,214.56,214.45,7.48]
[1758658700964,117.6489324,214.56,214.47,1.6889324]
[1758658701653,4.1931,214.54,214.48,7.48]
[1758658702362,4.1926,214.57,214.49,1.6889324]
[1758658702557,1.6889324,214.59,214.48,7.48]
[1758658702558,115.96,214.59,214.51,9.1689324]
[1758658703359,120.1521,214.59,214.51,9.1689324]
[1758658704665,120.1521,214.59,214.51,7.48]
[1758658706164,4.1924,214.58,214.51,7.48]
[1758658708173,4.1927,214.57,214.51,7.48]
[1758658709063,120.1521,214.59,214.51,7.48]
[1758658709266,153.3141946,214.61,214.51,11.37785804]
[1758658709470,153.3141946,214.61,214.51,3.89785804]
[1758658709762,153.3141946,214.61,214.52,9.94627728]
[1758658709968,153.3141946,214.61,214.53,7.31]
[1758658710968,65.2084,214.6,214.52,3.89785804]
[1758658711267,153.3141946,214.61,214.5,11.20785804]
[1758658711468,153.3141946,214.61,214.5,15.40155804]
[1758658711971,4.1922,214.59,214.5,15.40155804]
[1758658712270,153.3141946,214.61,214.5,15.40155804]
[1758658713568,65.2204,214.56,214.47,3.89785804]
[1758658713768,115.92,214.55,214.46,3.89785804]
[1758658713972,115.92,214.55,214.45,11.20785804]
[1758658714168,4.194,214.5,214.45,7.31]
[1758658715267,4.194,214.5,214.45,11.20785804]
[1758658715469,115.92,214.55,214.45,11.20785804]
[1758658716780,4.1936,214.52,214.45,11.20785804]
[1758658717072,4.1936,214.52,214.45,7.31]
[1758658718369,120.113,214.55,214.45,7.31]
[1758658718570,115.92,214.55,214.45,7.31]
[1758658719072,2.63627728,214.56,214.45,7.31]
[1758658719268,4.1934,214.53,214.45,7.31]
[1758658722180,4.1936,214.52,214.45,7.31]
[1758658725378,181.1442,214.55,214.45,7.31]
[1758658725774,65.2291,214.53,214.45,7.31]
[1758658726581,181.1442,214.55,214.45,7.31]
[1758658727766,115.92,214.55,214.45,7.31]
[1758658728370,19.28,214.54,214.45,7.31]
[1758658728774,4.1936,214.51,214.45,7.31]
[1758658729176,19.28,214.54,214.45,7.31]
[1758658729782,19.28,214.54,214.45,11.20785804]
[1758658730377,23.4732,214.54,214.45,15.40255804]
[1758658730874,4.1934,214.53,214.45,15.40255804]
[1758658732480,4.1934,214.53,214.45,8.09255804]
[1758658732682,4.1934,214.53,214.46,7.31]
[1758658733483,4.1936,214.52,214.46,7.31]
[1758658733782,19.28,214.54,214.46,7.31]
[1758658734080,19.28,214.54,214.46,11.20785804]
[1758658734879,4.1937,214.51,214.47,7.34]
[1758658735183,4.1937,214.51,214.46,3.89785804]
[1758658735584,4.1937,214.51,214.47,7.34]
[1758658735878,4.1937,214.51,214.46,3.89785804]
[1758658736073,4.1937,214.51,214.47,7.34]
[1758658736276,4.1937,214.51,214.46,3.89785804]
[1758658736479,4.1937,214.51,214.48,7.34]
[1758658739787,4.1934,214.53,214.48,7.34]
[1758658739990,4.1934,214.53,214.47,11.23785804]
[1758658740388,4.1936,214.52,214.48,7.34]
[1758658740688,19.28,214.54,214.44,11.23785804]
[1758658740890,19.28,214.54,214.44,7.34]
[1758658741784,19.28,214.54,214.44,11.23785804]
[1758658741985,23.4731,214.54,214.45,7.34]
[1758658742185,19.28,214.54,214.45,7.34]
[1758658743190,4.1936,214.52,214.45,7.34]
[1758658743983,19.28,214.54,214.45,7.34]
[1758658744789,4.194,214.5,214.45,7.34]
[1758658745482,4.194,214.5,214.44,11.26304427]
[1758658748296,4.1935,214.52,214.44,11.26304427]
[1758658749090,4.1938,214.51,214.44,11.26304427]
[1758658750897,4.194,214.5,214.44,11.26304427]
[1758658751097,4.194,214.5,214.45,3.92304427]
[1758658751299,4.194,214.5,214.46,7.34]
[1758658751592,135.12,214.54,214.45,3.92304427]
[1758658751801,65.2385,214.5,214.42,3.92304427]
[1758658752001,65.2453,214.48,214.39,7.34]
[1758658752293,65.2567,214.44,214.34,3.92304427]
[1758658752700,66.42723282,214.43,214.33,11.34304427]
[1758658752999,65.2567,214.44,214.28,47.81627728]
[1758658753000,65.2691,214.4,214.31,3.92304427]
[1758658753196,65.2691,214.4,214.29,3.92304427]
[1758658753197,181.1091,214.4,214.29,3.92304427]
[1758658753499,4.1969,214.35,214.28,13.97932155]
[1758658753898,4.1972,214.33,214.28,11.34304427]
[1758658754093,4.1972,214.33,214.26,3.92304427]
[1758658754094,18.43633264,214.33,214.26,3.92304427]
[1758658754294,4.1972,214.33,214.24,10.05627728]
[1758658754494,65.2766,214.38,214.24,10.05627728]
[1758658754690,2.33340736,214.37,214.24,10.05627728]
[1758658754896,2.33340736,214.36,214.24,10.05627728]
[1758658755198,85.78,214.36,214.24,10.05627728]
[1758658755798,36.46447543,214.39,214.22,3.92304427]
[1758658755799,115.84,214.38,214.29,7.42]
[1758658756001,129.92894975,214.38,214.29,7.42]
[1758658756203,65.2857,214.35,214.24,10.05627728]
[1758658756392,1.16673443,214.34,214.24,10.05627728]
[1758658756593,65.2903,214.33,214.24,2.63627728]
[1758658756895,65.2857,214.35,214.24,2.63627728]
[1758658757102,4.1978,214.3,214.24,2.63627728]
[1758658760009,90.88,214.32,214.24,10.05627728]
[1758658761108,18.42,214.31,214.24,10.05627728]
[1758658764920,4.1978,214.3,214.24,10.05627728]
[1758658766703,18.42,214.31,214.29,1.69117915]
[1758658768920,22.6177,214.31,214.29,1.69117915]
[1758658770910,138.4977,214.31,214.29,1.69117915]
[1758658771815,134.3,214.31,214.29,1.69117915]
[1758658774314,138.4977,214.31,214.29,1.69117915]
[1758658775010,115.86,214.3,214.29,1.69117915]
[1758658777216,115.86,214.3,214.28,1.69117915]
[1758658777715,120.0579,214.3,214.28,1.69117915]
[1758658778111,4.1979,214.3,214.28,1.69117915]
[1758658778312,115.86,214.29,214.28,1.69117915]
[1758658778607,120.0581,214.29,214.24,7.42]
[1758658779014,120.0581,214.29,214.27,1.69117915]
[1758658779214,115.86,214.29,214.2,7.83]
[1758658779412,115.86,214.29,214.24,1.69117915]
[1758658780513,4.1987,214.26,214.21,1.69117915]
[1758658780716,115.86,214.25,214.21,1.69117915]
[1758658781112,20.11117915,214.31,214.21,1.69117915]
[1758658781315,115.86,214.3,214.22,1.69117915]
[1758658781617,4.1985,214.27,214.18,12.03]
[1758658781916,4.1985,214.27,214.2,1.69117915]
[1758658782311,4.1985,214.27,214.18,12.03]
[1758658782512,4.1985,214.27,214.2,1.69117915]
[1758658784222,4.1985,214.27,214.19,5.89097915]
[1758658787624,4.1986,214.26,214.19,4.1998]
[1758658791124,4.1986,214.26,214.19,5.89097915]
[1758658792122,16.82,214.25,214.19,5.89097915]
[1758658793025,16.82,214.25,214.2,4.1996]
[1758658793430,16.82,214.25,214.21,1.69117915]
[1758658794122,16.82,214.25,214.22,7.13]
[1758658794722,16.82,214.25,214.17,65.3376]
[1758658794723,16.82,214.25,214.24,7.13]
[1758658796123,17.98709335,214.25,214.24,7.13]
[1758658796319,16.82,214.25,214.24,7.13]
[1758658801133,17.98704585,214.25,214.24,7.13]
[1758658801526,16.82,214.25,214.24,7.13]
[1758658801721,16.82,214.25,214.24,8.82117915]
[1758658801722,16.21114341,214.25,214.24,8.82117915]
[1758658801928,8.17616227,214.25,214.24,9.28117915]
[1758658803034,8.17616227,214.25,214.24,11.05874474]
[1758658803235,8.17616227,214.25,214.24,7.13]
[1758658803443,8.17616227,214.25,214.23,1.69117915]
[1758658803735,8.17616227,214.25,214.22,3.92874474]
[1758658803934,3.98,214.24,214.21,11.05874474]
[1758658804232,8.17616227,214.25,214.2,3.92874474]
[1758658804539,3.98,214.24,214.2,11.05874474]
[1758658804737,8.17616227,214.25,214.2,11.05874474]
[1758658804935,12.37486227,214.25,214.2,11.05874474]
[1758658805138,3.98,214.23,214.2,11.05874474]
[1758658805329,3.98,214.24,214.2,3.92874474]
[1758658805731,3.98,214.24,214.2,11.05874474]
[1758658805931,8.17616227,214.25,214.21,7.13]
[1758658806131,8.17616227,214.25,214.2,3.92874474]
[1758658806429,8.17616227,214.25,214.21,7.13]
[1758658806633,8.17616227,214.25,214.22,11.3292]
[1758658807335,5.88947915,214.28,214.22,11.3292]
[1758658807531,3.98,214.32,214.23,11.05874474]
[1758658807737,1.16695784,214.31,214.23,11.05874474]
[1758658807933,1.16695784,214.3,214.24,7.13]
[1758658808136,3.98,214.32,214.24,11.05874474]
[1758658808339,1.16692684,214.31,214.24,11.05874474]
[1758658808533,3.98,214.32,214.24,11.05874474]
[1758658808729,1.16692684,214.31,214.24,11.05874474]
[1758658808933,8.1773,214.33,214.27,4.1982]
[1758658809128,8.1773,214.33,214.25,7.13]
[1758658809129,1.16691806,214.32,214.24,3.92874474]
[1758658809336,3.98,214.3,214.21,3.92874474]
[1758658809534,3.98,214.28,214.21,3.92874474]
[1758658809934,8.1783,214.28,214.22,4.1992]
[1758658810137,8.1783,214.28,214.21,3.92874474]
[1758658811031,3.98,214.28,214.2,3.92874474]
[1758658811342,3.98,214.26,214.19,3.92874474]
[1758658812943,11.6,214.25,214.19,3.92874474]
[1758658813440,11.6,214.25,214.19,8.12854474]
[1758658813844,11.6,214.25,214.21,4.1994]
[1758658814045,11.6,214.25,214.22,7.5]
[1758658814542,11.6,214.25,214.19,11.42874474]
[1758658814543,15.57,214.25,214.19,11.42874474]
[1758658815037,15.57,214.25,214.19,7.5]
[1758658815642,15.57,214.25,214.19,11.6998]
[1758658815842,15.57,214.25,214.19,11.42874474]
[1758658816142,11.6,214.25,214.22,7.5]
[1758658816535,11.6,214.25,214.21,3.92874474]
[1758658816842,11.6,214.25,214.23,7.5]
[1758658817947,11.6,214.25,214.22,8.12794474]
[1758658818146,11.6,214.25,214.23,7.5]
[1758658821751,11.6,214.25,214.24,11.6989]
[1758658823052,11.6,214.25,214.24,4.1989]
[1758658823454,11.6,214.25,214.21,3.92874474]
[1758658823655,3.98,214.24,214.21,3.92874474]
[1758658823952,3.98,214.24,214.21,11.03874474]
[1758658824153,11.6,214.25,214.21,3.92874474]
[1758658824353,3.98,214.24,214.2,15.23834474]
[1758658824544,3.98,214.24,214.2,8.12834474]
[1758658824749,11.6,214.25,214.2,8.12834474]
[1758658824951,3.98,214.24,214.2,8.12834474]
[1758658826059,15.7988,214.25,214.2,8.12834474]
[1758658826354,3.98,214.24,214.2,8.12834474]
[1758658826654,11.6,214.25,214.21,3.92874474]
[1758658827059,11.6,214.25,214.22,7.11]
[1758658827260,15.58,214.25,214.22,7.11]
[1758658827757,15.58,214.25,214.22,11.3092]
[1758658828753,15.58,214.25,214.2,3.92874474]
[1758658828754,11.6,214.25,214.2,3.92874474]
[1758658829758,8.1791,214.24,214.2,3.92874474]
[1758658829954,119.64,214.23,214.14,5.13469074]
[1758658830151,2.6441117,214.15,213.98,7.11]
[1758658830351,1.16774234,214.14,214.01,7.11]
[1758658830557,73.18774234,214.13,214.01,7.11]
[1758658830750,1.16774234,214.12,214.01,7.11]
[1758658830950,1.16774234,214.11,214.01,7.11]
[1758658831157,1.16774234,214.1,213.97,7.11]
[1758658831357,1.16774234,214.09,213.97,7.11]
[1758658831557,5.36984234,214.08,213.97,11.3141]
[1758658831746,1.1679796,214.07,213.97,11.3141]
[1758658831950,1.1679796,214.06,213.97,7.11]
[1758658832255,1.16803728,214.05,213.97,7.11]
[1758658832462,1.16803728,214.04,213.89,68.0668117]
[1758658832760,1.16803728,214.04,213.87,65.4276]
[1758658832761,2.33619405,214.03,214.02,12.56767428]
[1758658833155,1.16803728,214.03,214.02,12.56767428]
[1758658833361,1.62803728,214.03,214.02,12.56767428]
[1758658833556,2.79621025,214.03,214.02,12.56767428]
[1758658833757,2.33621025,214.03,214.02,12.56767428]
[1758658835459,3.45,213.85,213.65,7.73408208]
[1758658835655,2.33794693,213.84,213.67,68.1351117]
[1758658835858,3.45,213.91,213.78,2.6441117]
[1758658836058,1.16933818,213.9,213.82,65.4451]
[1758658836357,3.45,214.01,213.89,2.6441117]
[1758658836562,2.33760786,214.0,213.9,65.4211]
[1758658836759,3.45,214.05,213.9,65.4211]
[1758658836760,1.16880393,213.99,213.9,69.6266]
[1758658836956,3.45,214.05,213.9,69.6266]
[1758658837154,2.3368184,214.04,213.88,142.54]
[1758658837352,37.91963743,214.06,213.96,7.11]
[1758658837353,1.1684092,214.03,213.96,7.11]
[1758658837560,1.1684092,214.02,213.96,7.11]
[1758658837755,0.35924244,214.01,213.98,7.11]
[1758658837958,3.45,214.1,213.99,7.11]
[1758658838159,1.16822482,214.09,213.99,7.11]
[1758658838466,1.16822482,214.08,213.95,72.5154]
[1758658838862,1.16822482,214.07,213.95,72.5154]
[1758658839057,1.16822482,214.06,213.95,72.5154]
[1758658839365,3.45,214.1,213.95,7.11]
[1758658839556,1.16831379,214.09,213.95,7.11]
[1758658839757,1.16831379,214.08,213.95,7.11]
[1758658839956,1.16831379,214.07,213.95,7.11]
[1758658840156,1.16837537,214.06,213.98,7.11]
[1758658840364,3.45,214.1,213.98,7.11]
[1758658841267,3.45,214.1,214.0,7.11]
[1758658841566,11.63,214.09,214.0,7.11]
[1758658842262,25.84027651,214.09,214.0,7.11]
[1758658842962,3.45,214.07,213.93,142.66]
[1758658843169,3.45,214.07,213.94,7.11]
[1758658843663,3.45,214.07,213.94,11.3148]
[1758658844064,3.45,214.07,213.95,7.11]
[1758658844862,3.45,214.04,213.88,7.11]
[1758658845056,1.16835011,214.03,213.88,7.11]
[1758658845261,1.16835011,214.03,213.92,7.11]
[1758658845456,3.45,214.04,213.92,7.11]
[1758658848665,4.2027,214.05,213.92,7.11]
[1758658848872,3.45,214.01,213.87,7.11]
[1758658849070,3.45,213.99,213.87,7.11]
[1758658849464,4.16456114,214.04,213.89,7.11]
[1758658849968,4.61858119,214.03,213.89,7.11]
[1758658850159,3.45,214.03,213.92,65.415]
[1758658850364,0.71456114,214.04,213.93,7.11]
[1758658850859,0.71456114,214.04,213.93,76.7265]
[1758658851071,0.71456114,214.04,213.95,65.4058]
[1758658851369,25.84027651,214.09,213.96,7.11]
[1758658851572,25.84027651,214.09,213.99,4.2037]
[1758658851774,25.84027651,214.09,214.0,7.11]
[1758658852272,25.84027651,214.09,214.01,4.2033]
[1758658852964,25.84027651,214.09,214.02,7.11]
[1758658853567,14.21027651,214.09,214.02,7.11]
[1758658853763,3.45,214.12,214.02,7.11]
[1758658854872,13.71957948,214.12,214.02,7.11]
[1758658855176,40.98148068,214.17,214.04,7.81]
[1758658855376,3.46,214.17,214.04,7.81]
[1758658855873,3.46,214.17,214.06,7.81]
[1758658856278,11.64,214.16,214.06,7.81]
[1758658856472,11.64,214.16,214.08,7.81]
[1758658857372,11.64,214.16,214.09,4.2018]
[1758658857578,11.64,214.16,214.1,7.81]
[1758658859279,11.64,214.16,214.11,4.2015]
[1758658859478,11.64,214.16,214.12,7.81]
[1758658859880,11.64,214.16,214.11,4.2015]
[1758658860074,11.64,214.16,214.12,7.81]
[1758658860277,11.64,214.16,214.08,4.202]
[1758658860779,11.64,214.16,214.1,4.2017]
[1758658861178,11.64,214.16,214.09,7.81]
[1758658861378,11.64,214.16,214.06,7.81]
[1758658864284,3.46,214.15,214.06,12.0124]
[1758658864780,15.8405,214.16,213.85,196.3055]
[1758658864781,65.3483,214.14,213.97,7.81]
[1758658864976,3.46,214.13,213.98,141.22]
[1758658865280,4.2017,214.1,214.0,4.2036]
[1758658865482,7.6617,214.1,214.0,4.2036]
[1758658865779,7.6617,214.1,213.99,7.81]
[1758658865983,7.6617,214.1,213.99,12.0137]
[1758658867486,11.64,214.16,214.04,7.81]
[1758658867678,3.46,214.15,214.04,7.81]
[1758658868082,4.2011,214.13,214.04,7.81]
[1758658868985,65.3523,214.13,213.99,7.81]
[1758658869286,4.38240576,214.12,213.99,7.81]
[1758658869583,3.46,214.06,213.9,65.4201]
[1758658869786,3.46,214.06,213.91,7.81]
[1758658870085,1.16842954,214.05,213.91,7.81]
[1758658870282,7.84345985,214.04,213.91,7.81]
[1758658870588,7.84345985,214.03,213.91,7.81]
[1758658870783,3.46,214.03,213.91,7.81]
[1758658871682,4.2035,214.01,213.91,12.0153]
[1758658872081,4.2035,214.01,213.91,7.81]
[1758658872387,3.2184951,214.0,213.91,7.81]
[1758658872587,4.2035,214.01,213.91,7.81]
[1758658872793,3.21827841,214.0,213.91,7.81]
[1758658872986,4.2035,214.01,213.91,7.81]
[1758658873186,8.59069696,214.0,213.91,7.81]
[1758658873391,4.38874269,213.99,213.85,7.32]
[1758658873687,6.67890844,213.98,213.87,4.206]
[1758658873888,3.46,213.98,213.87,4.206]
[1758658874491,7.664,213.98,213.87,4.206]
[1758658874988,3.46,213.98,213.88,4.2058]
[1758658876089,4.3898931,213.97,213.88,4.2058]
[1758658876285,3.46,213.98,213.88,4.2058]
[1758658876491,4.39025636,213.97,213.88,4.2058]
[1758658876686,4.2043,213.97,213.88,4.2058]
[1758658876984,3.46,214.05,213.89,7.32]
[1758658877289,4.2036,214.01,213.89,7.32]
[1758658877481,3.22219149,214.0,213.89,7.32]
[1758658877789,3.22219149,213.99,213.89,7.32]
[1758658877985,3.22219149,213.98,213.89,7.32]
[1758658878287,4.2036,214.01,213.89,7.32]
[1758658878482,3.21609019,214.0,213.89,7.32]
[1758658878685,3.21609019,213.99,213.89,7.32]
[1758658878889,4.2036,214.01,213.91,4.2052]
[1758658879191,3.21609019,214.0,213.91,4.2052]
[1758658879387,3.21609019,213.99,213.91,4.2052]
[1758658879584,4.2036,214.01,213.91,4.2052]
[1758658879888,3.215714,214.0,213.91,4.2052]
[1758658880082,3.215714,213.99,213.91,4.2052]
[1758658880282,4.2036,214.01,213.91,4.2052]
[1758658880488,3.21491595,214.0,213.92,7.32]
[1758658880694,3.21491595,213.99,213.92,7.32]
[1758658880881,4.2036,214.01,213.92,7.32]
[1758658881079,3.46,214.03,213.92,7.32]
[1758658881080,7.4190747,214.0,213.92,7.32]
[1758658881277,3.2152747,213.99,213.92,7.32]
[1758658881478,3.2152747,213.99,213.85,205.8359]
[1758658881479,6.6752747,213.99,213.85,7.32]
[1758658881683,3.2152747,213.98,213.87,139.86]
[1758658881891,11.68,213.97,213.88,7.32]
[1758658882787,15.8844,213.97,213.88,7.32]